fUST/lending_fUST_20241020
["ID","MTS","AMOUNT","RATE_DAILY","PERIOD"]
[340541206,1729423841349,-477.20484,0.0001195,2]
[340541207,1729423841360,-477.20484,0.0001195,2]
[340541208,1729423841371,-151.0,0.0001195,2]
[340541209,1729423841381,-151.0,0.0001195,2]
[340541210,1729423841391,-151.0,0.0001195,2]
[340541211,1729423841402,-507.83760218,0.0001195,2]
[340541247,1729423843711,-277.30597982,0.0001195,2]
[340541248,1729423843723,-785.143582,0.0001195,2]
[340541249,1729423843736,-151.0,0.0001195,2]
[340541250,1729423843746,-151.0,0.0001195,2]
[340541251,1729423843756,-785.143582,0.0001195,2]
[340541252,1729423843769,-785.143582,0.0001195,2]
[340541253,1729423843780,-151.0,0.0001195,2]
[340541254,1729423843791,-151.0,0.0001195,2]
[340541255,1729423843802,-178.487062,0.0001195,2]
[340541256,1729423843812,-178.487062,0.0001195,2]
[340541257,1729423843822,-178.487062,0.0001195,2]
[340541258,1729423843832,-178.487062,0.0001195,2]
[340541259,1729423843844,-1269.801862,0.0001195,2]
[340541260,1729423843855,-1269.801862,0.0001195,2]
[340541261,1729423843867,-1269.801862,0.0001195,2]
[340541262,1729423843877,-1269.801862,0.0001195,2]
[340541263,1729423843889,-151.0,0.0001195,2]
[340541264,1729423843900,-235.369763,0.0001195,2]
[340541265,1729423843912,-151.0,0.0001195,2]
[340541266,1729423843923,-235.369763,0.0001195,2]
[340541267,1729423843934,-235.369763,0.0001195,2]
[340541268,1729423843945,-235.369763,0.0001195,2]
[340541269,1729423843956,-754.770775,0.0001195,2]
[340541270,1729423843966,-163.59776269,0.0001195,2]
[340541271,1729423844009,-16.43233182,0.0001195,2]
[340541272,1729423844021,-574.74068049,0.0001195,2]
[340541273,1729423844033,-206.434408,0.0001195,2]
[340541274,1729423844043,-206.434408,0.0001195,2]
[340541275,1729423844054,-754.770775,0.0001195,2]
[340541276,1729423844064,-754.770775,0.0001195,2]
[340541277,1729423844075,-206.434408,0.0001195,2]
[340541278,1729423844086,-206.434408,0.0001195,2]
[340541279,1729423844097,-151.0,0.0001195,2]
[340541280,1729423844106,-151.0,0.0001195,2]
[340541281,1729423844115,-151.0,0.0001195,2]
[340541282,1729423844125,-151.0,0.0001195,2]
[340541283,1729423844138,-206.436972,0.0001195,2]
[340541284,1729423844150,-3000.0,0.0001195,2]
[340541285,1729423844160,-3000.0,0.0001195,2]
[340541286,1729423844171,-3000.0,0.0001195,2]
[340541287,1729423844182,-3000.0,0.0001195,2]
[340541288,1729423844192,-3000.0,0.0001195,2]
[340541289,1729423844202,-1083.880142,0.0001195,2]
[340541301,1729423937378,1000.0,0.00023,60]
[340541302,1729423938870,1000.0,0.00023,60]
[340541303,1729423940250,1000.0,0.00023,60]
[340541304,1729423941288,1000.0,0.00023,60]
[340541305,1729423942240,1000.0,0.00023,60]
[340541306,1729423943128,1000.0,0.00023,60]
[340541307,1729423943940,1000.0,0.00023,60]
[340541308,1729423944778,1000.0,0.00023,60]
[340541309,1729423945621,1000.0,0.00023,60]
[340541310,1729423946512,1000.0,0.00023,60]
[340541312,1729423994059,1000.0,0.00023,60]
[340541313,1729423994976,1000.0,0.00023,60]
[340541314,1729423995726,1000.0,0.00023,60]
[340541315,1729423996507,1000.0,0.00023,60]
[340541316,1729423997301,1000.0,0.00023,60]
[340541317,1729424000841,1000.0,0.00023,60]
[340541318,1729424004247,1000.0,0.00023,60]
[340541320,1729424018313,1862.33,0.00023,60]
[340541321,1729424107718,1000.0,0.00023,60]
[340541322,1729424110094,1000.0,0.00023,60]
[340541393,1729425032404,-250.0,0.00010959,2]
[340541394,1729425032413,-104.43296337,0.00010959,2]
[340541409,1729425040441,-46.81703663,0.00010959,2]
[340541410,1729425040451,-756.25,0.00010959,2]
[340541411,1729425040467,-4448.15478987,0.00011734,2]
[340541412,1729425040479,-158.55158088,0.00011744,2]
[340541413,1729425040491,-300.0,0.00011843,2]
[340541414,1729425040504,-300.0,0.00011843,2]
[340541415,1729425040515,-276.05005317,0.00011844,2]
[340541416,1729425040525,-118277.28906162,0.00011844,2]
[340541479,1729425646266,150.79,0.00023,60]
[340541574,1729426238698,-258.1,0.00010959,2]
[340541576,1729426238708,-215.08,0.00010959,2]
[340541577,1729426238717,-179.24,0.00010959,2]
[340541578,1729426238727,-896.2,0.00010959,2]
[340541579,1729426238736,-250.0,0.00010959,2]
[340541580,1729426238746,-243.0,0.0001122,2]
[340541581,1729426238756,-1070.8008254,0.00011629,2]
[340541599,1729426240550,-4096.75995147,0.00011629,2]
[340541600,1729426240560,-162.90702181,0.00011754,2]
[340541602,1729426240570,-300.0,0.00011788,2]
[340541603,1729426240579,-162.90702181,0.00011789,2]
[340541604,1729426240588,-162.90702181,0.00011824,2]
[340541605,1729426240599,-358.42360195,0.00011844,2]
[340541606,1729426240608,-28351.30027915,0.00011844,2]
[340541665,1729426388601,7000.0,0.00023,60]
[340541666,1729426430811,273.37336231,9.9e-05,2]
[340541668,1729426447816,273.37336231,9.9e-05,2]
[340541669,1729426456132,273.37336231,9.9e-05,2]
[340541670,1729426466039,273.37336231,9.9e-05,2]
[340541671,1729426473752,273.37336231,9.9e-05,2]
[340541676,1729426482285,273.37336231,9.9e-05,2]
[340541677,1729426490247,273.37336231,9.9e-05,2]
[340541678,1729426498852,273.37336231,9.9e-05,2]
[340541680,1729426506646,273.37336231,9.9e-05,2]
[340541681,1729426515305,273.37336231,9.9e-05,2]
[340541682,1729426523295,273.37336231,9.9e-05,2]
[340541683,1729426532999,273.37336231,9.9e-05,2]
[340541684,1729426540789,273.37336231,9.9e-05,2]
[340541685,1729426548810,273.37336231,9.9e-05,2]
[340541686,1729426556614,273.37336231,9.9e-05,2]
[340541687,1729426565166,273.37336231,9.9e-05,2]
[340541688,1729426572951,273.37336231,9.9e-05,2]
[340541689,1729426582090,273.37336231,9.9e-05,2]
[340541690,1729426590039,273.37336231,9.9e-05,2]
[340541691,1729426598565,273.37336231,9.9e-05,2]
[340541692,1729426606954,273.37336231,9.9e-05,2]
[340541693,1729426616526,273.37336231,9.9e-05,2]
[340541694,1729426623953,273.37336231,9.9e-05,2]
[340541695,1729426632525,273.37336231,9.9e-05,2]
[340541696,1729426641001,273.37336231,9.9e-05,2]
[340541697,1729426649594,273.37336231,9.9e-05,2]
[340541699,1729426657478,273.37336231,9.9e-05,2]
[340541701,1729426665501,273.37336231,9.9e-05,2]
[340541702,1729426673467,273.37336231,9.9e-05,2]
[340541703,1729426682218,273.37336231,9.9e-05,2]
[340541704,1729426690030,273.37336231,9.9e-05,2]
[340541705,1729426699306,273.37336231,9.9e-05,2]
[340541707,1729426707138,273.37336231,9.9e-05,2]
[340541708,1729426715850,273.37336231,9.9e-05,2]
[340541709,1729426723630,273.37336231,9.9e-05,2]
[340541710,1729426731983,273.37336231,9.9e-05,2]
[340541711,1729426739528,273.37336231,9.9e-05,2]
[340541712,1729426748621,273.37336231,9.9e-05,2]
[340541713,1729426749764,176.29792221,0.00023,60]
[340541714,1729426756387,273.37336231,9.9e-05,2]
[340541715,1729426764497,273.37336231,9.9e-05,2]
[340541716,1729426772593,273.37336231,9.9e-05,2]
[340541717,1729426780931,273.37336231,9.9e-05,2]
[340541718,1729426788829,273.37336231,9.9e-05,2]
[340541719,1729426797480,273.37336231,9.9e-05,2]
[340541720,1729426805534,273.37336231,9.9e-05,2]
[340541721,1729426813748,273.37336231,9.9e-05,2]
[340541722,1729426819162,300.0,0.00023,120]
[340541723,1729426822099,273.37336231,9.9e-05,2]
[340541725,1729426830702,273.37336231,9.9e-05,2]
[340541726,1729426838579,273.37336231,9.9e-05,2]
[340541727,1729426847566,273.37336231,9.9e-05,2]
[340541728,1729426855069,273.37336231,9.9e-05,2]
[340541729,1729426862909,273.37336231,9.9e-05,2]
[340541730,1729426870695,273.37336231,9.9e-05,2]
[340541731,1729426879681,273.37336231,9.9e-05,2]
[340541732,1729426887128,273.37336231,9.9e-05,2]
[340541733,1729426895732,273.37336231,9.9e-05,2]
[340541734,1729426903686,273.37336231,9.9e-05,2]
[340541735,1729426912211,273.37336231,9.9e-05,2]
[340541736,1729426920589,273.37336231,9.9e-05,2]
[340541737,1729426929244,273.37336231,9.9e-05,2]
[340541738,1729426937067,273.37336231,9.9e-05,2]
[340541739,1729426945199,273.37336231,9.9e-05,2]
[340541740,1729426953129,273.37336231,9.9e-05,2]
[340541741,1729426961026,273.37336231,9.9e-05,2]
[340541742,1729426969440,273.37336231,9.9e-05,2]
[340541743,1729426978618,273.37336231,9.9e-05,2]
[340541744,1729426986451,273.37336231,9.9e-05,2]
[340541745,1729426996203,273.37336231,9.9e-05,2]
[340541746,1729427004511,273.37336231,9.9e-05,2]
[340541747,1729427013147,273.37336231,9.9e-05,2]
[340541748,1729427021139,273.37336231,9.9e-05,2]
[340541749,1729427029816,273.37336231,9.9e-05,2]
[340541750,1729427044819,273.37336231,9.9e-05,2]
[340541751,1729427060749,273.37336231,9.9e-05,2]
[340541752,1729427076216,273.37336231,9.9e-05,2]
[340541753,1729427092692,273.37336231,9.9e-05,2]
[340541754,1729427108774,273.37336231,9.9e-05,2]
[340541758,1729427125807,273.37336231,9.9e-05,2]
[340541763,1729427142178,273.37336231,9.9e-05,2]
[340541765,1729427158596,273.37336231,9.9e-05,2]
[340541770,1729427174234,273.37336231,9.9e-05,2]
[340541771,1729427190043,273.37336231,9.9e-05,2]
[340541772,1729427207128,273.37336231,9.9e-05,2]
[340541773,1729427223269,273.37336231,9.9e-05,2]
[340541781,1729427238926,273.37336231,9.9e-05,2]
[340541787,1729427254946,273.37336231,9.9e-05,2]
[340541788,1729427270123,273.37336231,9.9e-05,2]
[340541792,1729427285835,273.37336231,9.9e-05,2]
[340541793,1729427301444,273.37336231,9.9e-05,2]
[340541795,1729427316876,273.37336231,9.9e-05,2]
[340541800,1729427333031,273.37336231,9.9e-05,2]
[340541802,1729427350235,273.37336231,9.9e-05,2]
[340541803,1729427365837,273.37336231,9.9e-05,2]
[340541804,1729427381130,273.37336231,9.9e-05,2]
[340541805,1729427397559,273.37336231,9.9e-05,2]
[340541806,1729427413191,273.37336231,9.9e-05,2]
[340541807,1729427413558,1070.0,0.00023,60]
[340541808,1729427428566,273.37336231,9.9e-05,2]
[340541841,1729427438912,-250.0,0.00010959,2]
[340541842,1729427438929,-221.52,0.00010959,2]
[340541843,1729427438947,-197.67392819,0.00011591,2]
[340541844,1729427438999,-4969.88684868,0.00011591,2]
[340541845,1729427439016,-300.0,0.0001178,2]
[340541846,1729427439033,-238.94906797,0.00011781,2]
[340541847,1729427439049,-2442.43301891,0.00011781,2]
[340541848,1729427439068,-7847.85542327,0.00011781,2]
[340541849,1729427439085,-25927.50995836,0.00011781,2]
[340541850,1729427439103,-878.2489504,0.00011781,2]
[340541852,1729427442058,-223046.58203522,0.00011781,2]
[340541853,1729427442082,-541.47931992,0.000118,2]
[340541854,1729427442106,-135583.93864486,0.000118,2]
[340541869,1729427445390,273.37336231,9.9e-05,2]
[340541877,1729427462313,273.37336231,9.9e-05,2]
[340541878,1729427478529,273.37336231,9.9e-05,2]
[340541879,1729427494287,273.37336231,9.9e-05,2]
[340541880,1729427511348,273.37336231,9.9e-05,2]
[340541881,1729427527012,273.37336231,9.9e-05,2]
[340541882,1729427542756,273.37336231,9.9e-05,2]
[340541883,1729427559227,273.37336231,9.9e-05,2]
[340541884,1729427574542,273.37336231,9.9e-05,2]
[340541885,1729427590704,273.37336231,9.9e-05,2]
[340541886,1729427606695,273.37336231,9.9e-05,2]
[340541887,1729427622305,273.37336231,9.9e-05,2]
[340541888,1729427638026,273.37336231,9.9e-05,2]
[340541889,1729427648864,307.3,0.00023,60]
[340541890,1729427654304,273.37336231,9.9e-05,2]
[340541891,1729427669612,273.37336231,9.9e-05,2]
[340541892,1729427685841,273.37336231,9.9e-05,2]
[340541893,1729427702281,273.37336231,9.9e-05,2]
[340541895,1729427719143,273.37336231,9.9e-05,2]
[340541896,1729427735009,273.37336231,9.9e-05,2]
[340541897,1729427750700,273.37336231,9.9e-05,2]
[340541898,1729427766361,273.37336231,9.9e-05,2]
[340541899,1729427782366,273.37336231,9.9e-05,2]
[340541900,1729427798034,273.37336231,9.9e-05,2]
[340541901,1729427813412,273.37336231,9.9e-05,2]
[340541902,1729427828955,273.37336231,9.9e-05,2]
[340541903,1729427845202,273.37336231,9.9e-05,2]
[340541904,1729427861552,273.37336231,9.9e-05,2]
[340541905,1729427877874,273.37336231,9.9e-05,2]
[340541906,1729427894254,255.80526366,9.9e-05,2]
[340541910,1729428115588,986.0,0.00023,60]
[340541911,1729428166295,607.23615839,0.00023,60]
[340541913,1729428375928,6200.0,0.00023,60]
[340541914,1729428385091,221.385646,0.00010481,2]
[340541947,1729428631892,-221.385646,0.0001051,2]
[340541948,1729428631902,-178.614354,0.00010538,2]
[340541957,1729428638685,-42.771292,0.00010538,2]
[340541958,1729428638695,-221.385646,0.00010567,2]
[340541959,1729428638704,-221.385646,0.00010596,2]
[340541960,1729428638714,-221.385646,0.00010624,2]
[340541961,1729428638725,-221.385646,0.00010653,2]
[340541962,1729428638739,-221.385646,0.00010682,2]
[340541963,1729428638749,-221.385646,0.00010711,2]
[340541964,1729428638766,-221.385646,0.00010739,2]
[340541965,1729428638775,-221.385646,0.00010768,2]
[340541966,1729428638784,-221.385646,0.00010797,2]
[340541967,1729428638799,-221.385646,0.00010826,2]
[340541968,1729428638808,-221.385646,0.00010854,2]
[340541969,1729428638818,-221.385646,0.00010883,2]
[340541970,1729428638827,-221.385646,0.00010912,2]
[340541971,1729428638835,-600.000001,0.00010926,2]
[340541972,1729428638846,-221.385646,0.00010941,2]
[340541973,1729428638856,-153.84,0.00010959,2]
[340541974,1729428638865,-250.0,0.00010959,2]
[340541975,1729428638876,-221.385646,0.00010969,2]
[340541976,1729428638885,-221.385646,0.00010998,2]
[340541977,1729428638894,-221.385646,0.00011027,2]
[340541978,1729428638903,-210.6821207,0.00011278,2]
[340541979,1729428638913,-210.6821207,0.00011278,2]
[340541980,1729428638922,-350.4758415,0.00011425,2]
[340541981,1729428638931,-300.0,0.00011452,2]
[340541982,1729428638941,-300.0,0.00011452,2]
[340541983,1729428638950,-306.6052975,0.00011452,2]
[340541984,1729428638961,-5628.84432751,0.00011747,2]
[340541994,1729428639860,-695.50005,0.00011747,2]
[340542007,1729428643952,-1947.0,0.00011747,2]
[340542022,1729429148388,1000.0,0.00023,60]
[340542145,1729429838396,-465.5528554,0.00010524,2]
[340542147,1729429838406,-1000.0,0.000108,2]
[340542149,1729429838416,-1000.0,0.000108,3]
[340542151,1729429838425,-186.77,0.00010959,2]
[340542153,1729429838434,-250.0,0.00010959,2]
[340542155,1729429838444,-604.06,0.00011,2]
[340542157,1729429838453,-1000.0,0.00011,4]
[340542159,1729429838463,-150.0,0.00011285,2]
[340542161,1729429838472,-300.0,0.00011435,2]
[340542163,1729429838482,-300.0,0.00011435,2]
[340542165,1729429838493,-7556.80573963,0.00011446,2]
[340542167,1729429838503,-160.31326509,0.00011644,2]
[340542169,1729429838512,-676.46427115,0.000117,2]
[340542171,1729429838523,-846.92663554,0.00011743,2]
[340542336,1729429840097,-5444.98818515,0.00011743,2]
[340542338,1729429840107,-538.6708138,0.00011744,2]
[340542340,1729429840116,-46056.19095353,0.00011744,2]
[340542342,1729429840125,-256.543,0.00011744,2]
[340542344,1729429840135,-475066.39591882,0.00011781,2]
[340544237,1729431039650,-597.87232015,0.000107,2]
[340544239,1729431039660,-1000.0,0.000108,2]
[340544242,1729431039670,-11.23767985,0.000108,3]
[340544298,1729431040180,-988.76232015,0.000108,3]
[340544300,1729431040191,-1000.0,0.000108,4]
[340544301,1729431040202,-250.0,0.00010959,2]
[340544303,1729431040212,-769.21,0.00010959,2]
[340544305,1729431040223,-1000.0,0.00011,5]
[340544306,1729431040233,-1000.0,0.00011,6]
[340544308,1729431040243,-1000.0,0.00011,7]
[340544311,1729431040254,-210.6821207,0.00011078,2]
[340544312,1729431040263,-215.6110887,0.00011378,2]
[340544313,1729431040275,-210.6821207,0.00011378,2]
[340544314,1729431040285,-300.0,0.00011595,2]
[340544315,1729431040295,-300.0,0.00011596,2]
[340544316,1729431040304,-38.00621063,0.000116,8]
[340544319,1729431040445,-961.99378937,0.000116,8]
[340544321,1729431040456,-1000.0,0.000116,9]
[340544323,1729431040468,-7556.80573963,0.00011602,2]
[340544325,1729431040479,-160.31326505,0.00011699,2]
[340544328,1729431040490,-608.81784408,0.00011744,2]
[340544329,1729431040500,-500.0,0.00011773,2]
[340544332,1729431040510,-416.65149735,0.00011773,2]
[340544334,1729431040527,-500.0,0.00011773,2]
[340544336,1729431040537,-500.0,0.00011773,2]
[340544338,1729431040547,-500.0,0.00011773,2]
[340544340,1729431040557,-500.0,0.00011773,2]
[340544342,1729431040574,-500.0,0.00011773,2]
[340544343,1729431040585,-500.0,0.00011773,2]
[340544345,1729431040597,-500.0,0.00011773,2]
[340544347,1729431040608,-359.11387586,0.00011781,2]
[340544348,1729431040618,-74105.99290381,0.00011781,2]
[340544349,1729431040629,-241.25151293,0.00011799,2]
[340544350,1729431040639,-2026.83389486,0.00011799,2]
[340544351,1729431040649,-5000.0,0.000118,2]
[340544352,1729431040849,-17937.6579843,0.000118,2]
[340544353,1729431040859,-44224.56771276,0.000118,2]
[340544359,1729431043337,-617.118625,0.000118,2]
[340544360,1729431043349,-2044.5781688,0.000118,2]
[340544369,1729431046296,-1565.28798229,0.00011799,2]
[340544374,1729431415707,2022.8,0.00023,60]
[340544423,1729432232354,-250.0,0.00010959,2]
[340544424,1729432232365,-231.0,0.0001122,2]
[340544425,1729432232375,-2142.31834823,0.00011569,2]
[340544460,1729432241980,-310.50432313,0.00011569,2]
[340544462,1729432241990,-1769.98126115,0.00011724,2]
[340544464,1729432242000,-160.31326505,0.00011744,2]
[340544466,1729432242010,-547.9360596,0.00011754,2]
[340544467,1729432242022,-1428.14691533,0.00011799,2]
[340544468,1729432242033,-300.0,0.00011799,2]
[340544469,1729432242042,-300.0,0.00011799,2]
[340544470,1729432242051,-245.92532122,0.000118,2]
[340544471,1729432242064,-2778.97292206,0.000118,2]
[340544472,1729432242199,-693.32025,0.000118,2]
[340544473,1729432242211,-736.2976857,0.000118,2]
[340544485,1729432504183,242.34786026,0.0001,2]
[340544486,1729432847735,150.0,0.00023,60]
[340544515,1729433432805,-250.0,0.00010959,2]
[340544518,1729433432822,-155.28,0.00010959,2]
[340544520,1729433432840,-776.42,0.00010959,2]
[340544523,1729433432857,-493.14245364,0.00011744,2]
[340544526,1729433432872,-161.05808658,0.00011744,2]
[340544528,1729433432888,-763.24945978,0.00011799,2]
[340544531,1729433432907,-690.45013972,0.00011799,2]
[340544534,1729433432924,-545.48382102,0.000118,2]
[340544537,1729433432941,-300.0,0.00011833,2]
[340544540,1729433432958,-300.0,0.00011833,2]
[340544543,1729433432975,-902.10179223,0.00011834,2]
[340544545,1729433432990,-312008.38322989,0.00011834,2]
[340544548,1729433433011,-90632.93954211,0.00011834,2]
[340544551,1729433433027,-310.664258,0.00011844,2]
[340544553,1729433433043,-310.664258,0.00011844,2]
[340544556,1729433433060,-310.664258,0.00011844,2]
[340544559,1729433433079,-310.664258,0.00011844,2]
[340544561,1729433433096,-310.664258,0.00011844,2]
[340544564,1729433433111,-310.664258,0.00011844,2]
[340544567,1729433433126,-310.664258,0.00011844,2]
[340544569,1729433433141,-310.664258,0.00011844,2]
[340544572,1729433433158,-151.0,0.00011844,2]
[340544574,1729433433173,-151.0,0.00011844,2]
[340544576,1729433433189,-151.0,0.00011844,2]
[340544577,1729433433205,-151.0,0.00011844,2]
[340544578,1729433433225,-151.0,0.00011844,2]
[340544579,1729433433240,-151.0,0.00011844,2]
[340544580,1729433433259,-151.0,0.00011844,2]
[340544581,1729433433275,-166.408316,0.00011844,2]
[340544582,1729433433291,-151.0,0.00011844,2]
[340544583,1729433433308,-151.0,0.00011844,2]
[340544584,1729433433323,-151.0,0.00011844,2]
[340544585,1729433433341,-151.0,0.00011844,2]
[340544586,1729433433359,-151.0,0.00011844,2]
[340544587,1729433433376,-151.0,0.00011844,2]
[340544588,1729433433392,-151.0,0.00011844,2]
[340544589,1729433433408,-151.0,0.00011844,2]
[340544590,1729433433425,-151.0,0.00011844,2]
[340544591,1729433433440,-151.0,0.00011844,2]
[340544592,1729433433457,-151.0,0.00011844,2]
[340544593,1729433433474,-151.0,0.00011844,2]
[340544594,1729433433490,-256.194593,0.00011844,2]
[340544595,1729433433506,-256.194593,0.00011844,2]
[340544596,1729433433523,-256.194593,0.00011844,2]
[340544597,1729433433539,-256.194593,0.00011844,2]
[340544598,1729433433549,-256.194593,0.00011844,2]
[340544599,1729433433790,-256.194593,0.00011844,2]
[340544600,1729433433808,-256.194593,0.00011844,2]
[340544601,1729433433818,-256.194593,0.00011844,2]
[340544602,1729433433832,-256.194593,0.00011844,2]
[340544603,1729433433842,-256.194593,0.00011844,2]
[340544604,1729433433852,-256.194593,0.00011844,2]
[340544605,1729433433863,-256.194593,0.00011844,2]
[340544606,1729433433873,-256.194593,0.00011844,2]
[340544607,1729433433884,-256.194593,0.00011844,2]
[340544608,1729433433893,-197.663788,0.00011844,2]
[340544609,1729433433903,-197.663788,0.00011844,2]
[340544610,1729433433912,-197.663788,0.00011844,2]
[340544611,1729433433922,-197.663788,0.00011844,2]
[340544612,1729433433933,-197.663788,0.00011844,2]
[340544613,1729433433943,-197.663788,0.00011844,2]
[340544614,1729433433953,-197.663788,0.00011844,2]
[340544615,1729433433963,-197.663788,0.00011844,2]
[340544616,1729433433972,-197.663788,0.00011844,2]
[340544617,1729433433982,-197.663788,0.00011844,2]
[340544618,1729433433992,-197.663788,0.00011844,2]
[340544619,1729433434001,-197.663788,0.00011844,2]
[340544620,1729433434012,-151.0,0.00011844,2]
[340544621,1729433434022,-151.0,0.00011844,2]
[340544622,1729433434032,-151.0,0.00011844,2]
[340544623,1729433434042,-151.0,0.00011844,2]
[340544624,1729433434051,-151.0,0.00011844,2]
[340544625,1729433434061,-151.0,0.00011844,2]
[340544626,1729433434071,-151.0,0.00011844,2]
[340544627,1729433434084,-151.0,0.00011844,2]
[340544628,1729433434095,-151.0,0.00011844,2]
[340544629,1729433434105,-151.0,0.00011844,2]
[340544630,1729433434115,-151.0,0.00011844,2]
[340544631,1729433434126,-151.0,0.00011844,2]
[340544632,1729433434137,-151.0,0.00011844,2]
[340544633,1729433434146,-151.0,0.00011844,2]
[340544634,1729433434156,-151.0,0.00011844,2]
[340544635,1729433434166,-151.0,0.00011844,2]
[340544636,1729433434176,-151.0,0.00011844,2]
[340544637,1729433434185,-151.0,0.00011844,2]
[340544638,1729433434195,-176.308721,0.00011844,2]
[340544639,1729433434204,-151.0,0.00011844,2]
[340544640,1729433434214,-222.758877,0.00011844,2]
[340544641,1729433434224,-151.0,0.00011844,2]
[340544642,1729433434234,-152.046673,0.00011844,2]
[340544643,1729433434244,-151.0,0.00011844,2]
[340544644,1729433434254,-151.0,0.00011844,2]
[340544645,1729433434264,-151.0,0.00011844,2]
[340544646,1729433434273,-151.0,0.00011844,2]
[340544647,1729433434283,-151.0,0.00011844,2]
[340544648,1729433434293,-151.0,0.00011844,2]
[340544649,1729433434303,-151.0,0.00011844,2]
[340544650,1729433434313,-151.0,0.00011844,2]
[340544651,1729433434323,-151.0,0.00011844,2]
[340544652,1729433434335,-151.0,0.00011844,2]
[340544653,1729433434344,-151.0,0.00011844,2]
[340544654,1729433434353,-151.0,0.00011844,2]
[340544655,1729433434362,-151.0,0.00011844,2]
[340544656,1729433434371,-151.0,0.00011844,2]
[340544657,1729433434381,-151.0,0.00011844,2]
[340544658,1729433434391,-151.0,0.00011844,2]
[340544659,1729433434401,-151.0,0.00011844,2]
[340544660,1729433434411,-151.0,0.00011844,2]
[340544661,1729433434420,-151.0,0.00011844,2]
[340544662,1729433434429,-151.0,0.00011844,2]
[340544663,1729433434440,-151.0,0.00011844,2]
[340544664,1729433434449,-151.0,0.00011844,2]
[340544665,1729433434459,-151.0,0.00011844,2]
[340544666,1729433434469,-151.0,0.00011844,2]
[340544667,1729433434479,-288.401257,0.00011844,2]
[340544668,1729433434489,-485.07374,0.00011844,2]
[340544669,1729433434498,-485.07374,0.00011844,2]
[340544670,1729433434509,-485.07374,0.00011844,2]
[340544671,1729433434518,-485.07374,0.00011844,2]
[340544672,1729433434529,-485.07374,0.00011844,2]
[340544673,1729433434538,-485.07374,0.00011844,2]
[340544674,1729433434548,-485.07374,0.00011844,2]
[340544675,1729433434557,-485.07374,0.00011844,2]
[340544676,1729433434567,-151.0,0.00011844,2]
[340544677,1729433434578,-485.07374,0.00011844,2]
[340544678,1729433434588,-153.90093,0.00011844,2]
[340544679,1729433434598,-485.07374,0.00011844,2]
[340544680,1729433434608,-485.07374,0.00011844,2]
[340544681,1729433434618,-485.07374,0.00011844,2]
[340544682,1729433434628,-485.07374,0.00011844,2]
[340544683,1729433434637,-485.07374,0.00011844,2]
[340544684,1729433434648,-485.07374,0.00011844,2]
[340544685,1729433434657,-485.07374,0.00011844,2]
[340544686,1729433434667,-485.07374,0.00011844,2]
[340544687,1729433434677,-151.0,0.00011844,2]
[340544688,1729433434687,-485.07374,0.00011844,2]
[340544689,1729433434707,-151.0,0.00011844,2]
[340544690,1729433434720,-151.0,0.00011844,2]
[340544691,1729433434730,-151.0,0.00011844,2]
[340544692,1729433434741,-151.0,0.00011844,2]
[340544693,1729433434751,-151.0,0.00011844,2]
[340544694,1729433434762,-151.0,0.00011844,2]
[340544695,1729433434771,-151.0,0.00011844,2]
[340544696,1729433434781,-151.0,0.00011844,2]
[340544697,1729433434793,-151.0,0.00011844,2]
[340544698,1729433434803,-268.850082,0.00011844,2]
[340544699,1729433434814,-151.0,0.00011844,2]
[340544700,1729433434824,-268.850082,0.00011844,2]
[340544701,1729433434835,-151.0,0.00011844,2]